[Event "44th Chess Olympiad Women 2022"]
[Site "Chennai"]
[Date "2022.08.06"]
[Round "8.46"]
[White "Jonet, Davena"]
[Black "Lampard, Alice"]
[Result "0-1"]
[WhiteElo "1458"]
[BlackElo "1729"]
[Annotator "NA RC"]
[PlyCount "92"]
[EventDate "2022.??.??"]
[TimeControl "60"]

1. e4 {[%emt 0:00:02]} c5 {[%emt 0:00:27]} 2. Bc4 {[%emt 0:00:24]} Nc6 {
[%emt 0:00:30]} 3. Nf3 {[%emt 0:01:04]} e6 {[%emt 0:02:23]} 4. Nc3 {[%emt 0:00:
00]} g6 {[%emt 0:01:52]} 5. d4 {[%emt 0:01:13]} d6 {[%emt 0:08:27]} 6. Bb5 {
[%emt 0:08:16]} Bd7 {[%emt 0:05:01]} 7. Bf4 {[%emt 0:04:33]} cxd4 {[%emt 0:00:
00]} 8. Bxc6 {[%emt 0:05:38]} Bxc6 {[%emt 0:06:05]} 9. Qxd4 {[%emt 0:04:38]} f6
{[%emt 0:05:35]} 10. Qd2 {[%emt 0:01:23]} e5 {[%emt 0:05:11]} 11. Be3 {[%emt 0:
00:00]} Qa5 {[%emt 0:01:44]} 12. a3 {[%emt 0:03:19]} f5 {[%emt 0:08:35]} 13.
exf5 {[%emt 0:03:27]} Bxf3 {[%emt 0:02:54]} 14. gxf3 {[%emt 0:01:04]} gxf5 {
[%emt 0:11:03]} 15. Qd5 {[%emt 0:02:33]} Qxd5 {[%emt 0:01:05]} 16. Nxd5 {
[%emt 0:00:11]} Kd7 {[%emt 0:01:44]} 17. Rg1 {[%emt 0:03:04]} f4 {[%emt 0:00:
00]} 18. Bd2 {[%emt 0:01:08]} Ne7 {[%emt 0:00:59]} 19. Nf6+ {[%emt 0:04:49]}
Ke6 {[%emt 0:03:41]} 20. Ne4 {[%emt 0:00:26]} Rg8 {[%emt 0:01:08]} 21. Rxg8 {
[%emt 0:05:37]} Nxg8 {[%emt 0:00:08]} 22. Ng5+ {[%emt 0:01:15]} Kf5 {[%emt 0:
00:00]} 23. Ne4 {[%emt 0:05:48]} Nf6 {[%emt 0:03:28]} 24. Nxf6 {[%emt 0:00:00]}
Kxf6 {[%emt 0:00:04]} 25. O-O-O {[%emt 0:00:00]} Be7 {[%emt 0:02:22]} 26. Bb4 {
[%emt 0:00:00]} Ke6 {[%emt 0:00:43]} 27. Re1 {[%emt 0:03:22]} Rg8 {[%emt 0:00:
00]} 28. Rh1 {[%emt 0:01:29]} Rg2 {[%emt 0:00:16]} 29. Be1 {[%emt 0:00:40]} Bh4
{[%emt 0:00:43]} 30. h3 {[%emt 0:03:22]} b6 {[%emt 0:02:33]} 31. b4 {[%emt 0:
00:00]} Kf7 {[%emt 0:00:52]} 32. Kb2 {[%emt 0:00:43]} h5 {[%emt 0:01:33]} 33.
Kb3 {[%emt 0:00:30]} Bxf2 {[%emt 0:00:29]} 34. Bc3 {[%emt 0:00:17]} b5 {
[%emt 0:03:54]} 35. Bb2 {[%emt 0:03:38]} Rg3 {[%emt 0:00:27]} 36. Rf1 {[%emt 0:
00:00]} Rxf3+ {[%emt 0:01:31]} 37. c3 {[%emt 0:00:55]} e4 {[%emt 0:00:09]} 38.
a4 {[%emt 0:01:10]} bxa4+ {[%emt 0:00:17]} 39. Kxa4 {[%emt 0:00:34]} e3 {
[%emt 0:01:48]} 40. c4 {[%emt 0:01:15]} e2 {[%emt 0:00:35]} 41. Rxf2 {[%emt 0:
00:00]} e1=Q {[%emt 0:30:46]} 42. Rg2 {[%emt 0:02:08]} Rg3 {[%emt 0:01:32]} 43.
Rh2 {[%emt 0:00:46]} Qg1 {[%emt 0:00:29]} 44. Rd2 {[%emt 0:02:09]} Qb6 {
[%emt 0:00:13]} 45. b5 {[%emt 0:00:55]} Qc5 {[%emt 0:00:42]} 46. Rd5 {[%emt 0:
00:00]} Qxc4+ {[%emt 0:00:17]} 0-1

[Event "44th Chess Olympiad Women 2022"]
[Site "Chennai"]
[Date "2022.08.06"]
[Round "8.46"]
[White "Roy, Ali"]
[Black "Paul, Theophane"]
[Result "1-0"]
[WhiteElo "1893"]
[BlackElo "1493"]
[Annotator "NA RC"]
[PlyCount "55"]
[EventDate "2022.??.??"]
[TimeControl "60"]

1. Nf3 {[%emt 0:00:03]} d5 {[%emt 0:00:34]} 2. g3 {[%emt 0:00:05]} e6 {[%emt 0:
00:00]} 3. Bg2 {[%emt 0:00:05]} Nf6 {[%emt 0:00:23]} 4. O-O {[%emt 0:00:22]}
Be7 {[%emt 0:00:30]} 5. d3 {[%emt 0:00:17]} O-O {[%emt 0:00:51]} 6. Nbd2 {
[%emt 0:00:21]} b6 {[%emt 0:02:06]} 7. e4 {[%emt 0:01:01]} Bb7 {[%emt 0:03:10]}
8. e5 {[%emt 0:01:39]} Nfd7 {[%emt 0:01:41]} 9. Re1 {[%emt 0:01:45]} c5 {
[%emt 0:03:07]} 10. h4 {[%emt 0:01:33]} Qc7 {[%emt 0:03:05]} 11. Nf1 {[%emt 0:
00:00]} Nc6 {[%emt 0:02:55]} 12. Bf4 {[%emt 0:00:34]} Rac8 {[%emt 0:04:44]} 13.
N1h2 {[%emt 0:00:41]} Rfe8 {[%emt 0:02:51]} 14. Qe2 {[%emt 0:04:01]} Nd4 {
[%emt 0:04:48]} 15. Nxd4 {[%emt 0:02:57]} cxd4 {[%emt 0:01:54]} 16. Rac1 {
[%emt 0:00:01]} Nf8 {[%emt 0:04:06]} 17. h5 {[%emt 0:01:33]} Bb4 {[%emt 0:00:
00]} 18. Rf1 {[%emt 0:04:28]} Bc5 {[%emt 0:06:09]} 19. Ng4 {[%emt 0:01:15]} Nd7
{[%emt 0:07:16]} 20. Nf6+ {[%emt 0:08:27]} gxf6 {[%emt 0:16:07]} 21. exf6 {
[%emt 0:00:23]} Qxf4 {[%emt 0:13:09]} 22. gxf4 {[%emt 0:00:08]} Nxf6 {[%emt 0:
00:00]} 23. Kh1 {[%emt 0:06:38]} Kh8 {[%emt 0:02:10]} 24. Qe5 {[%emt 0:00:53]}
Be7 {[%emt 0:03:28]} 25. Rg1 {[%emt 0:01:02]} Rg8 {[%emt 0:03:48]} 26. Bh3 {
[%emt 0:01:33]} Rxg1+ {[%emt 0:00:46]} 27. Rxg1 {[%emt 0:00:24]} h6 {[%emt 0:
00:00]} 28. f5 {[%emt 0:02:35]} 1-0

[Event "44th Chess Olympiad Women 2022"]
[Site "Chennai"]
[Date "2022.08.06"]
[Round "8.46"]
[White "Seine, Rose Berline"]
[Black "Cooke, Suzie G."]
[Result "0-1"]
[WhiteElo "1679"]
[BlackElo "1936"]
[Annotator "NA RC"]
[PlyCount "126"]
[EventDate "2022.??.??"]
[TimeControl "60"]

1. d4 {[%emt 0:01:06]} d5 {[%emt 0:00:13]} 2. Bf4 {[%emt 0:00:04]} Nf6 {
[%emt 0:01:08]} 3. Nf3 {[%emt 0:00:40]} c5 {[%emt 0:03:49]} 4. e3 {[%emt 0:00:
00]} Nc6 {[%emt 0:02:32]} 5. c3 {[%emt 0:00:34]} Qb6 {[%emt 0:02:43]} 6. Qc1 {
[%emt 0:00:31]} Bf5 {[%emt 0:02:35]} 7. Nbd2 {[%emt 0:00:33]} cxd4 {[%emt 0:00:
00]} 8. exd4 {[%emt 0:00:10]} Rc8 {[%emt 0:02:10]} 9. h3 {[%emt 0:01:16]} Nb4 {
[%emt 0:03:04]} 10. Rb1 {[%emt 0:04:43]} Bxb1 {[%emt 0:01:48]} 11. Qxb1 {
[%emt 0:00:08]} Nc6 {[%emt 0:00:48]} 12. Bd3 {[%emt 0:00:06]} g6 {[%emt 0:00:
00]} 13. O-O {[%emt 0:00:11]} Bg7 {[%emt 0:00:07]} 14. Re1 {[%emt 0:00:25]} O-O
{[%emt 0:00:10]} 15. Bh2 {[%emt 0:04:28]} Nd7 {[%emt 0:05:36]} 16. Nb3 {
[%emt 0:03:32]} Rfe8 {[%emt 0:03:58]} 17. Qd1 {[%emt 0:01:37]} e5 {[%emt 0:00:
00]} 18. dxe5 {[%emt 0:00:13]} Ndxe5 {[%emt 0:01:53]} 19. Be2 {[%emt 0:00:47]}
Rcd8 {[%emt 0:03:39]} 20. Bg3 {[%emt 0:01:51]} Nxf3+ {[%emt 0:07:08]} 21. Bxf3
{[%emt 0:00:11]} Rxe1+ {[%emt 0:00:44]} 22. Qxe1 {[%emt 0:00:07]} Bf6 {[%emt 0:
00:00]} 23. Qd2 {[%emt 0:05:52]} Ne5 {[%emt 0:10:38]} 24. Qe3 {[%emt 0:17:25]}
Qxe3 {[%emt 0:00:44]} 25. fxe3 {[%emt 0:00:17]} Nxf3+ {[%emt 0:04:02]} 26. gxf3
{[%emt 0:00:12]} Re8 {[%emt 0:01:07]} 27. Kf2 {[%emt 0:02:34]} b6 {[%emt 0:00:
00]} 28. Ke2 {[%emt 0:01:08]} Bg5 {[%emt 0:00:33]} 29. f4 {[%emt 0:02:29]} Bf6
{[%emt 0:00:21]} 30. Kd3 {[%emt 0:00:50]} g5 {[%emt 0:01:21]} 31. Nd2 {[%emt 0:
00:00]} b5 {[%emt 0:05:13]} 32. Nf3 {[%emt 0:02:40]} gxf4 {[%emt 0:00:06]} 33.
Bxf4 {[%emt 0:00:09]} Kg7 {[%emt 0:02:25]} 34. Nd4 {[%emt 0:04:45]} a6 {
[%emt 0:00:45]} 35. Nf5+ {[%emt 0:00:47]} Kg6 {[%emt 0:00:31]} 36. Ng3 {
[%emt 0:02:34]} Bg5 {[%emt 0:03:49]} 37. Ne2 {[%emt 0:01:58]} Re4 {[%emt 0:00:
00]} 38. Kd2 {[%emt 0:02:03]} h5 {[%emt 0:01:41]} 39. Kd3 {[%emt 0:00:30]} a5 {
[%emt 0:02:54]} 40. a3 {[%emt 0:00:44]} f5 {[%emt 0:01:30]} 41. Kd2 {[%emt 0:
00:00]} h4 {[%emt 0:33:10]} 42. Kd3 {[%emt 0:02:55]} Kf6 {[%emt 0:04:44]} 43.
Kd2 {[%emt 0:01:56]} b4 {[%emt 0:00:00]} 44. axb4 {[%emt 0:00:00]} axb4 {
[%emt 0:00:00]} 45. Kd3 {[%emt 0:00:00]} Bxf4 {[%emt 0:00:00]} 46. Nxf4 {
[%emt 0:00:00]} Ke5 {[%emt 0:00:00]} 47. Ng6+ {[%emt 0:00:00]} Kd6 {[%emt 0:00:
00]} 48. Nf4 {[%emt 0:00:00]} b3 {[%emt 0:00:00]} 49. Kd2 {[%emt 0:00:00]} Ra4
{[%emt 0:00:00]} 50. Nd3 {[%emt 0:00:00]} Ra1 {[%emt 0:00:00]} 51. Ke2 {
[%emt 0:00:00]} Rh1 {[%emt 0:00:00]} 52. Nf2 {[%emt 0:00:00]} Rc1 {[%emt 0:00:
00]} 53. Nd3 {[%emt 0:00:00]} Rc2+ {[%emt 0:00:00]} 54. Ke1 {[%emt 0:00:00]}
Rg2 {[%emt 0:00:00]} 55. Nf2 {[%emt 0:00:00]} Ke5 {[%emt 0:00:00]} 56. Kf1 {
[%emt 0:00:00]} Rg3 {[%emt 0:00:00]} 57. Ke2 {[%emt 0:00:00]} f4 {[%emt 0:00:
00]} 58. exf4+ {[%emt 0:00:00]} Kxf4 {[%emt 0:00:00]} 59. Nd3+ {[%emt 0:00:00]}
Kf5 {[%emt 0:00:00]} 60. Nf2 {[%emt 0:00:00]} Rxc3 {[%emt 0:00:00]} 61. Nd3 {
[%emt 0:00:00]} Rc2+ {[%emt 0:00:00]} 62. Ke1 {[%emt 0:00:00]} Ke4 {[%emt 0:00:
00]} 63. Nf2+ {[%emt 0:00:00]} Rxf2 {[%emt 0:00:00]} 0-1

[Event "44th Chess Olympiad Women 2022"]
[Site "Chennai"]
[Date "2022.08.06"]
[Round "8.47"]
[White "Bedrosian, Danielle"]
[Black "Kaslan, Alexandra"]
[Result "1/2-1/2"]
[WhiteElo "1662"]
[BlackElo "1435"]
[Annotator "NA RC"]
[PlyCount "111"]
[EventDate "2022.??.??"]
[TimeControl "60"]

1. b3 {[%emt 0:00:02]} e5 {[%emt 0:00:17]} 2. Bb2 {[%emt 0:00:26]} d6 {[%emt 0:
00:00]} 3. c4 {[%emt 0:06:35]} Be6 {[%emt 0:04:50]} 4. Nc3 {[%emt 0:01:24]} c6
{[%emt 0:00:34]} 5. Nf3 {[%emt 0:09:23]} Nd7 {[%emt 0:08:05]} 6. e4 {[%emt 0:
00:00]} Be7 {[%emt 0:04:54]} 7. d4 {[%emt 0:05:14]} Ngf6 {[%emt 0:09:23]} 8. d5
{[%emt 0:02:18]} Bg4 {[%emt 0:01:25]} 9. Be2 {[%emt 0:01:40]} O-O {[%emt 0:00:
00]} 10. O-O {[%emt 0:02:22]} Nc5 {[%emt 0:05:39]} 11. Nd2 {[%emt 0:01:17]} Qd7
{[%emt 0:10:01]} 12. h3 {[%emt 0:02:20]} Bxe2 {[%emt 0:07:02]} 13. Qxe2 {
[%emt 0:00:14]} g6 {[%emt 0:05:24]} 14. b4 {[%emt 0:11:55]} Na6 {[%emt 0:02:28]
} 15. a3 {[%emt 0:01:57]} Nh5 {[%emt 0:05:22]} 16. Nf3 {[%emt 0:02:56]} Nf4 {
[%emt 0:04:11]} 17. Qd1 {[%emt 0:07:58]} f5 {[%emt 0:01:56]} 18. exf5 {[%emt 0:
00:00]} Qxf5 {[%emt 0:01:25]} 19. Ne1 {[%emt 0:05:33]} Rae8 {[%emt 0:06:39]}
20. Ne2 {[%emt 0:03:16]} Nxe2+ {[%emt 0:04:20]} 21. Qxe2 {[%emt 0:00:04]} Nc7 {
[%emt 0:00:48]} 22. dxc6 {[%emt 0:04:37]} bxc6 {[%emt 0:01:05]} 23. Nf3 {
[%emt 0:02:48]} Ne6 {[%emt 0:00:43]} 24. Rad1 {[%emt 0:02:15]} Nf4 {[%emt 0:00:
00]} 25. Qe3 {[%emt 0:02:31]} Nxh3+ {[%emt 0:01:14]} 26. gxh3 {[%emt 0:00:51]}
Qxf3 {[%emt 0:00:17]} 27. Qxf3 {[%emt 0:00:36]} Rxf3 {[%emt 0:00:22]} 28. c5 {
[%emt 0:01:55]} dxc5 {[%emt 0:01:11]} 29. Bxe5 {[%emt 0:00:26]} cxb4 {[%emt 0:
00:00]} 30. axb4 {[%emt 0:00:11]} Bxb4 {[%emt 0:00:26]} 31. Kg2 {[%emt 0:00:07]
} Rf5 {[%emt 0:01:02]} 32. Bg3 {[%emt 0:00:58]} a5 {[%emt 0:00:48]} 33. Rd7 {
[%emt 0:00:12]} Rf7 {[%emt 0:00:51]} 34. Rd3 {[%emt 0:00:28]} Rfe7 {[%emt 0:00:
00]} 35. Rc1 {[%emt 0:00:14]} Re6 {[%emt 0:00:30]} 36. Rd7 {[%emt 0:00:40]}
R8e7 {[%emt 0:00:51]} 37. Rd8+ {[%emt 0:00:06]} Kf7 {[%emt 0:00:21]} 38. Bh4 {
[%emt 0:00:09]} Rc7 {[%emt 0:00:18]} 39. Bg3 {[%emt 0:00:08]} Rb7 {[%emt 0:00:
00]} 40. Bf4 {[%emt 0:02:13]} Be7 {[%emt 0:00:48]} 41. Ra8 {[%emt 0:31:29]} Bb4
{[%emt 0:30:43]} 42. Be3 {[%emt 0:00:00]} Ke7 {[%emt 0:00:00]} 43. Rh8 {
[%emt 0:00:00]} Kd6 {[%emt 0:00:00]} 44. Bf4+ {[%emt 0:00:00]} Kd5 {[%emt 0:00:
00]} 45. Rd8+ {[%emt 0:00:00]} Ke4 {[%emt 0:00:00]} 46. Rc4+ {[%emt 0:00:00]}
Kf5 {[%emt 0:00:00]} 47. Kf3 {[%emt 0:01:23]} g5 {[%emt 0:00:00]} 48. Be3 {
[%emt 0:00:54]} Kg6 {[%emt 0:00:41]} 49. Rg8+ {[%emt 0:00:49]} Rg7 {[%emt 0:00:
00]} 50. Rxg7+ {[%emt 0:00:31]} Kxg7 {[%emt 0:00:09]} 51. Bxg5 {[%emt 0:00:01]}
Kg6 {[%emt 0:01:02]} 52. Be3 {[%emt 0:00:24]} Rf6+ {[%emt 0:01:52]} 53. Ke2 {
[%emt 0:00:28]} Kf5 {[%emt 0:00:42]} 54. Kd3 {[%emt 0:00:46]} Rd6+ {[%emt 0:00:
00]} 55. Kc2 {[%emt 0:00:10]} Ke6 {[%emt 0:00:24]} 56. Rh4 {[%emt 0:00:44]}
1/2-1/2

[Event "44th Chess Olympiad Women 2022"]
[Site "Chennai"]
[Date "2022.08.06"]
[Round "8.47"]
[White "Creebsburg, Shefali"]
[Black "Fawaz, Nadia"]
[Result "0-1"]
[WhiteElo "1151"]
[BlackElo "1214"]
[Annotator "NA RC"]
[PlyCount "88"]
[EventDate "2022.??.??"]
[TimeControl "60"]

1. e4 {[%emt 0:00:04]} d5 {[%emt 0:00:19]} 2. exd5 {[%emt 0:00:24]} Nf6 {
[%emt 0:00:28]} 3. Nc3 {[%emt 0:00:31]} Nxd5 {[%emt 0:00:55]} 4. Bc4 {[%emt 0:
00:00]} e6 {[%emt 0:05:30]} 5. d4 {[%emt 0:06:49]} Bb4 {[%emt 0:01:42]} 6. Bd2
{[%emt 0:03:29]} O-O {[%emt 0:08:51]} 7. Nxd5 {[%emt 0:03:52]} Bxd2+ {[%emt 0:
00:00]} 8. Qxd2 {[%emt 0:00:13]} exd5 {[%emt 0:00:08]} 9. Be2 {[%emt 0:01:00]}
Bf5 {[%emt 0:02:39]} 10. Nf3 {[%emt 0:02:28]} Nd7 {[%emt 0:04:41]} 11. O-O {
[%emt 0:02:03]} Nf6 {[%emt 0:01:15]} 12. h3 {[%emt 0:07:29]} Re8 {[%emt 0:00:
00]} 13. Rac1 {[%emt 0:07:11]} Ne4 {[%emt 0:02:54]} 14. Qf4 {[%emt 0:05:21]}
Nd6 {[%emt 0:01:54]} 15. Bd1 {[%emt 0:07:36]} Re4 {[%emt 0:03:00]} 16. Qg3 {
[%emt 0:02:23]} Bg6 {[%emt 0:00:44]} 17. c3 {[%emt 0:00:47]} Qe7 {[%emt 0:00:
00]} 18. Ne5 {[%emt 0:05:00]} Nf5 {[%emt 0:06:54]} 19. Qf3 {[%emt 0:04:46]} Qg5
{[%emt 0:05:08]} 20. Bc2 {[%emt 0:07:46]} Bh5 {[%emt 0:02:37]} 21. Ng4 {
[%emt 0:02:36]} Bxg4 {[%emt 0:02:31]} 22. hxg4 {[%emt 0:03:12]} Nh4 {[%emt 0:
00:00]} 23. Qh3 {[%emt 0:04:24]} Rxg4 {[%emt 0:00:27]} 24. g3 {[%emt 0:01:26]}
Nf3+ {[%emt 0:00:22]} 25. Kh1 {[%emt 0:01:26]} h6 {[%emt 0:02:05]} 26. Bd3 {
[%emt 0:04:35]} Re8 {[%emt 0:02:14]} 27. Rc2 {[%emt 0:02:10]} Re1 {[%emt 0:00:
00]} 28. Be2 {[%emt 0:04:22]} Qf5 {[%emt 0:10:21]} 29. Rxe1 {[%emt 0:01:36]}
Rh4 {[%emt 0:01:02]} 30. Qxh4 {[%emt 0:01:22]} Nxh4 {[%emt 0:00:13]} 31. gxh4 {
[%emt 0:01:26]} Qxc2 {[%emt 0:00:11]} 32. h5 {[%emt 0:01:26]} Qd2 {[%emt 0:00:
00]} 33. Rg1 {[%emt 0:01:13]} Qxe2 {[%emt 0:00:05]} 34. Rg2 {[%emt 0:00:24]}
Qxh5+ {[%emt 0:00:16]} 35. Rh2 {[%emt 0:00:08]} Qf3+ {[%emt 0:00:12]} 36. Rg2 {
[%emt 0:00:06]} Qh3+ {[%emt 0:00:09]} 37. Kg1 {[%emt 0:00:22]} Qd3 {[%emt 0:00:
00]} 38. Rg3 {[%emt 0:00:30]} Qb1+ {[%emt 0:00:06]} 39. Kg2 {[%emt 0:00:08]}
Qxb2 {[%emt 0:00:14]} 40. a4 {[%emt 0:00:21]} Qa3 {[%emt 0:00:07]} 41. f4 {
[%emt 0:30:17]} Qxa4 {[%emt 0:30:20]} 42. f5 {[%emt 0:00:11]} Qc2+ {[%emt 0:00:
00]} 43. Kh3 {[%emt 0:00:23]} Qxf5+ {[%emt 0:00:05]} 44. Rg4 {[%emt 0:00:17]}
h5 {[%emt 0:00:08]} 0-1

[Event "44th Chess Olympiad Women 2022"]
[Site "Chennai"]
[Date "2022.08.06"]
[Round "8.47"]
[White "Kaslan, Victoria"]
[Black "Grishina, Alexandra"]
[Result "1-0"]
[WhiteElo "1477"]
[BlackElo "2012"]
[Annotator "NA RC"]
[PlyCount "81"]
[EventDate "2022.??.??"]
[TimeControl "60"]

1. e4 {[%emt 0:00:17]} c6 {[%emt 0:00:25]} 2. d4 {[%emt 0:00:21]} d5 {[%emt 0:
00:00]} 3. Nc3 {[%emt 0:00:47]} dxe4 {[%emt 0:01:34]} 4. Nxe4 {[%emt 0:00:29]}
Nf6 {[%emt 0:01:21]} 5. Ng3 {[%emt 0:04:35]} Bg4 {[%emt 0:03:11]} 6. Be2 {
[%emt 0:01:14]} Bxe2 {[%emt 0:01:57]} 7. N1xe2 {[%emt 0:00:25]} e6 {[%emt 0:00:
00]} 8. Bg5 {[%emt 0:04:25]} h6 {[%emt 0:06:37]} 9. Bf4 {[%emt 0:03:34]} Qd5 {
[%emt 0:04:26]} 10. O-O {[%emt 0:02:52]} Be7 {[%emt 0:05:03]} 11. Qd3 {[%emt 0:
00:00]} Na6 {[%emt 0:09:52]} 12. c4 {[%emt 0:09:11]} Qd7 {[%emt 0:05:46]} 13.
Rfd1 {[%emt 0:05:50]} Rd8 {[%emt 0:02:32]} 14. Qf3 {[%emt 0:03:02]} O-O {
[%emt 0:05:24]} 15. Be5 {[%emt 0:12:05]} Qc8 {[%emt 0:05:40]} 16. Nh5 {[%emt 0:
00:00]} Nxh5 {[%emt 0:03:00]} 17. Qxh5 {[%emt 0:01:25]} f6 {[%emt 0:05:47]} 18.
Bf4 {[%emt 0:03:29]} Kh7 {[%emt 0:01:06]} 19. Rd3 {[%emt 0:07:48]} f5 {[%emt 0:
00:00]} 20. Rg3 {[%emt 0:12:01]} Rf6 {[%emt 0:04:53]} 21. Bg5 {[%emt 0:03:07]}
Qd7 {[%emt 0:01:33]} 22. Bxf6 {[%emt 0:07:12]} Bxf6 {[%emt 0:00:05]} 23. Rd1 {
[%emt 0:03:01]} Nc5 {[%emt 0:00:30]} 24. h3 {[%emt 0:01:13]} Ne4 {[%emt 0:00:
00]} 25. Rgd3 {[%emt 0:00:19]} Qc7 {[%emt 0:01:04]} 26. Qf3 {[%emt 0:00:35]} g5
{[%emt 0:00:38]} 27. g4 {[%emt 0:00:18]} Kg6 {[%emt 0:00:39]} 28. gxf5+ {
[%emt 0:00:54]} exf5 {[%emt 0:00:05]} 29. Ng3 {[%emt 0:00:16]} Nxg3 {[%emt 0:
00:00]} 30. Qxg3 {[%emt 0:00:16]} f4 {[%emt 0:00:41]} 31. Qf3 {[%emt 0:00:14]}
Re8 {[%emt 0:01:16]} 32. Kg2 {[%emt 0:00:50]} h5 {[%emt 0:00:44]} 33. b3 {
[%emt 0:00:16]} Kf7 {[%emt 0:00:22]} 34. Qxh5+ {[%emt 0:00:13]} Kf8 {[%emt 0:
00:00]} 35. Qh6+ {[%emt 0:00:13]} Kg8 {[%emt 0:01:02]} 36. Qxf6 {[%emt 0:00:14]
} Re7 {[%emt 0:00:10]} 37. d5 {[%emt 0:00:38]} Rg7 {[%emt 0:00:12]} 38. dxc6 {
[%emt 0:00:28]} Kh7 {[%emt 0:01:05]} 39. Qf5+ {[%emt 0:00:17]} Kh8 {[%emt 0:00:
00]} 40. Rd8+ {[%emt 0:00:09]} Rg8 {[%emt 0:00:11]} 41. Rxg8+ {[%emt 0:30:36]}
1-0

[Event "44th Chess Olympiad Women 2022"]
[Site "Chennai"]
[Date "2022.08.06"]
[Round "8.47"]
[White "Mouradian, Knarik"]
[Black "Kaslan, Catherine"]
[Result "0-1"]
[WhiteElo "2121"]
[BlackElo "1872"]
[Annotator "NA RC"]
[PlyCount "84"]
[EventDate "2022.??.??"]
[TimeControl "60"]

1. e4 {[%emt 0:00:10]} c5 {[%emt 0:00:21]} 2. Nf3 {[%emt 0:00:24]} d6 {[%emt 0:
00:00]} 3. Bb5+ {[%emt 0:00:23]} Nd7 {[%emt 0:00:56]} 4. c3 {[%emt 0:00:48]}
Ngf6 {[%emt 0:03:14]} 5. Qe2 {[%emt 0:00:46]} a6 {[%emt 0:05:34]} 6. Ba4 {
[%emt 0:00:22]} b5 {[%emt 0:01:32]} 7. Bc2 {[%emt 0:00:18]} e5 {[%emt 0:02:27]}
8. d4 {[%emt 0:04:02]} g6 {[%emt 0:05:40]} 9. O-O {[%emt 0:05:26]} Bg7 {
[%emt 0:02:02]} 10. d5 {[%emt 0:11:51]} O-O {[%emt 0:12:56]} 11. b3 {[%emt 0:
00:00]} Nb6 {[%emt 0:12:54]} 12. h3 {[%emt 0:01:22]} h6 {[%emt 0:05:36]} 13.
Be3 {[%emt 0:07:39]} Nh5 {[%emt 0:06:08]} 14. Qd2 {[%emt 0:04:33]} Kh7 {
[%emt 0:00:30]} 15. g4 {[%emt 0:09:16]} Qf6 {[%emt 0:08:25]} 16. Kg2 {[%emt 0:
00:00]} Nf4+ {[%emt 0:00:41]} 17. Bxf4 {[%emt 0:00:14]} exf4 {[%emt 0:02:40]}
18. Re1 {[%emt 0:02:50]} Nd7 {[%emt 0:00:31]} 19. a4 {[%emt 0:06:09]} b4 {
[%emt 0:01:14]} 20. e5 {[%emt 0:01:47]} Nxe5 {[%emt 0:02:21]} 21. Nxe5 {
[%emt 0:00:24]} dxe5 {[%emt 0:03:22]} 22. Be4 {[%emt 0:00:30]} Qd6 {[%emt 0:00:
00]} 23. f3 {[%emt 0:04:38]} f5 {[%emt 0:00:54]} 24. Bc2 {[%emt 0:01:01]} fxg4
{[%emt 0:02:49]} 25. hxg4 {[%emt 0:00:09]} Bxg4 {[%emt 0:03:38]} 26. fxg4 {
[%emt 0:05:18]} f3+ {[%emt 0:00:13]} 27. Kf2 {[%emt 0:02:21]} e4 {[%emt 0:00:
00]} 28. Rh1 {[%emt 0:01:38]} e3+ {[%emt 0:03:49]} 29. Qxe3 {[%emt 0:00:29]}
bxc3 {[%emt 0:06:38]} 30. Kf1 {[%emt 0:01:01]} Rae8 {[%emt 0:00:50]} 31. Qd3 {
[%emt 0:00:38]} Rf6 {[%emt 0:01:44]} 32. Rh3 {[%emt 0:02:43]} Qf4 {[%emt 0:00:
00]} 33. Nxc3 {[%emt 0:01:54]} Qxg4 {[%emt 0:00:14]} 34. Rh2 {[%emt 0:00:23]}
Qf4 {[%emt 0:01:16]} 35. Qd2 {[%emt 0:01:54]} Qg3 {[%emt 0:01:15]} 36. Ne4 {
[%emt 0:02:01]} Rxe4 {[%emt 0:00:17]} 37. Bxe4 {[%emt 0:00:08]} Rf4 {[%emt 0:
00:00]} 38. Rh1 {[%emt 0:05:41]} Bxa1 {[%emt 0:00:11]} 39. Bxg6+ {[%emt 0:00:
00]} Kg7 {[%emt 0:00:29]} 40. Rg1 {[%emt 0:00:49]} Qh3+ {[%emt 0:00:20]} 41.
Kf2 {[%emt 0:30:26]} Qh2+ {[%emt 0:30:53]} 42. Ke3 {[%emt 0:00:00]} Qxg1+ {
[%emt 0:00:00]} 0-1

[Event "44th Chess Olympiad Women 2022"]
[Site "Chennai"]
[Date "2022.08.06"]
[Round "8.48"]
[White "Alvarez Gutierrez, Patricia"]
[Black "Stagno, Milena"]
[Result "1-0"]
[WhiteElo "1715"]
[BlackElo "1448"]
[Annotator "NA RC"]
[PlyCount "83"]
[EventDate "2022.??.??"]
[TimeControl "60"]

1. d4 {[%emt 0:00:07]} d5 {[%emt 0:00:11]} 2. c4 {[%emt 0:00:10]} c6 {[%emt 0:
00:00]} 3. Nc3 {[%emt 0:00:07]} Nf6 {[%emt 0:00:12]} 4. Bg5 {[%emt 0:00:19]} e6
{[%emt 0:00:29]} 5. Nf3 {[%emt 0:00:20]} Be7 {[%emt 0:00:36]} 6. e3 {[%emt 0:
00:00]} Nbd7 {[%emt 0:00:26]} 7. Bd3 {[%emt 0:00:16]} O-O {[%emt 0:01:06]} 8.
O-O {[%emt 0:00:14]} b6 {[%emt 0:00:33]} 9. cxd5 {[%emt 0:00:19]} exd5 {
[%emt 0:04:30]} 10. Rc1 {[%emt 0:00:38]} Bb7 {[%emt 0:01:18]} 11. Qc2 {[%emt 0:
00:00]} h6 {[%emt 0:04:27]} 12. Bh4 {[%emt 0:01:12]} c5 {[%emt 0:08:32]} 13.
dxc5 {[%emt 0:09:06]} Nxc5 {[%emt 0:07:07]} 14. Be2 {[%emt 0:01:48]} Rc8 {
[%emt 0:05:33]} 15. Rfd1 {[%emt 0:01:13]} Nce4 {[%emt 0:07:02]} 16. Nd4 {
[%emt 0:06:56]} Bb4 {[%emt 0:05:20]} 17. Qb3 {[%emt 0:02:18]} Qe7 {[%emt 0:00:
00]} 18. Nxe4 {[%emt 0:09:35]} dxe4 {[%emt 0:00:47]} 19. Nf5 {[%emt 0:01:51]}
Qe6 {[%emt 0:13:22]} 20. Nxh6+ {[%emt 0:03:39]} gxh6 {[%emt 0:01:00]} 21. Qxb4
{[%emt 0:00:16]} Nd7 {[%emt 0:07:25]} 22. Qd4 {[%emt 0:11:03]} Nc5 {[%emt 0:00:
00]} 23. Bc4 {[%emt 0:02:32]} Qg6 {[%emt 0:01:02]} 24. Be7 {[%emt 0:16:40]} Nd3
{[%emt 0:02:57]} 25. Bxf8 {[%emt 0:13:24]} Nxc1 {[%emt 0:00:04]} 26. Rxc1 {
[%emt 0:02:33]} Rxf8 {[%emt 0:00:04]} 27. Bb3 {[%emt 0:02:50]} Bc8 {[%emt 0:00:
00]} 28. Qe5 {[%emt 0:08:50]} Kh7 {[%emt 0:01:34]} 29. Bd5 {[%emt 0:01:19]} Bf5
{[%emt 0:00:59]} 30. g3 {[%emt 0:04:12]} b5 {[%emt 0:02:50]} 31. Qf4 {[%emt 0:
00:00]} Rd8 {[%emt 0:00:49]} 32. Bb3 {[%emt 0:00:33]} Rd2 {[%emt 0:00:41]} 33.
Kg2 {[%emt 0:00:29]} Rd7 {[%emt 0:01:08]} 34. Rc5 {[%emt 0:00:17]} a6 {[%emt 0:
00:00]} 35. Qxf5 {[%emt 0:00:08]} Rd2 {[%emt 0:00:43]} 36. Qxg6+ {[%emt 0:00:
00]} fxg6 {[%emt 0:00:04]} 37. Re5 {[%emt 0:00:27]} Rxb2 {[%emt 0:00:21]} 38.
Rxe4 {[%emt 0:00:06]} a5 {[%emt 0:01:11]} 39. Re7+ {[%emt 0:01:01]} Kh8 {
[%emt 0:00:00]} 40. Rb7 {[%emt 0:00:44]} a4 {[%emt 0:00:00]} 41. Bxa4 {[%emt 0:
00:00]} Rxa2 {[%emt 0:29:40]} 42. Bxb5 {[%emt 0:00:08]} 1-0